lending/lending_fUSD_20251021
["ID","MTS","AMOUNT","RATE_DAILY","PERIOD"]
[391938087,1761012641393,-500.0,0.00017426,2]
[391938088,1761012641403,-500.0,0.00017426,2]
[391938090,1761012641413,-500.0,0.00017426,2]
[391938092,1761012641422,-500.0,0.00017426,2]
[391938094,1761012641431,-500.0,0.00017426,2]
[391938096,1761012641441,-277.35679052,0.00017426,2]
[391938098,1761012641450,-500.0,0.00017426,2]
[391938100,1761012641460,-500.0,0.00017426,2]
[391938102,1761012641470,-9552.16786547,0.00017426,2]
[391938104,1761012641479,-500.0,0.00017426,2]
[391938106,1761012641488,-250.0,0.00017426,2]
[391938108,1761012641497,-258.77395472,0.00017426,2]
[391938110,1761012641506,-500.0,0.00017426,2]
[391938112,1761012641515,-250.0,0.00017426,2]
[391938114,1761012641524,-1000.0,0.00017426,2]
[391938116,1761012641533,-500.0,0.00017426,2]
[391938118,1761012641542,-250.0,0.00017426,2]
[391938120,1761012641551,-500.0,0.00017426,2]
[391938122,1761012641560,-1000.0,0.00017426,2]
[391938124,1761012641569,-250.0,0.00017426,2]
[391938126,1761012641579,-500.0,0.00017426,2]
[391938128,1761012641588,-1000.0,0.00017426,2]
[391938132,1761012641607,-250.0,0.00017426,2]
[391938134,1761012641623,-500.0,0.00017426,2]
[391938137,1761012641640,-1000.0,0.00017426,2]
[391938140,1761012641659,-500.0,0.00017426,2]
[391938143,1761012641675,-250.0,0.00017426,2]
[391938146,1761012641689,-500.0,0.00017426,2]
[391938149,1761012641709,-1000.0,0.00017426,2]
[391938152,1761012641726,-250.0,0.00017426,2]
[391938155,1761012641743,-500.0,0.00017426,2]
[391938157,1761012641762,-1000.0,0.00017426,2]
[391938160,1761012641779,-250.0,0.00017426,2]
[391938163,1761012641796,-500.0,0.00017426,2]
[391938166,1761012641816,-1000.0,0.00017426,2]
[391938169,1761012641834,-500.0,0.00017426,2]
[391938172,1761012641850,-1000.0,0.00017426,2]
[391938174,1761012641864,-250.0,0.00017426,2]
[391938177,1761012641880,-500.0,0.00017426,2]
[391938179,1761012641892,-1000.0,0.00017426,2]
[391938182,1761012641909,-250.0,0.00017426,2]
[391938185,1761012641922,-177.69512062,0.00017426,2]
[391938187,1761012641935,-1000.0,0.00017426,2]
[391938190,1761012641953,-250.0,0.00017426,2]
[391938193,1761012641969,-322.6107,0.00017426,2]
[391938195,1761012641984,-1000.0,0.00017426,2]
[391938198,1761012641999,-250.0,0.00017426,2]
[391938201,1761012642013,-250.0,0.00017426,2]
[391938203,1761012642028,-250.0,0.00017426,2]
[391938206,1761012642042,-250.0,0.00017426,2]
[391938208,1761012642056,-250.0,0.00017426,2]
[391938211,1761012642070,-250.0,0.00017426,2]
[391938213,1761012642084,-250.0,0.00017426,2]
[391938216,1761012642098,-250.0,0.00017426,2]
[391938218,1761012642111,-250.0,0.00017426,2]
[391938221,1761012642126,-250.0,0.00017426,2]
[391938223,1761012642140,-250.0,0.00017426,2]
[391938226,1761012642153,-1000.0,0.00017426,2]
[391938228,1761012642166,-1000.0,0.00017426,2]
[391938231,1761012642180,-1000.0,0.00017426,2]
[391938233,1761012642193,-1000.0,0.00017426,2]
[391938235,1761012642207,-1000.0,0.00017426,2]
[391938238,1761012642221,-1000.0,0.00017426,2]
[391938240,1761012642234,-1000.0,0.00017426,2]
[391938243,1761012642247,-1000.0,0.00017426,2]
[391938245,1761012642260,-1000.0,0.00017426,2]
[391938248,1761012642274,-1000.0,0.00017426,2]
[391938250,1761012642288,-1000.0,0.00017426,2]
[391938253,1761012642302,-6640.5,0.00017448,2]
[391938255,1761012642315,-501.35095288,0.00017473,2]
[391938258,1761012642329,-500.61371051,0.00017473,2]
[391938260,1761012642342,-501.35590764,0.00017473,2]
[391938262,1761012642356,-504.49621066,0.00017473,2]
[391938265,1761012642369,-500.0,0.00017473,2]
[391938268,1761012642384,-500.29333356,0.00017473,2]
[391938270,1761012642397,-640.093611,0.00017473,2]
[391938272,1761012642410,-500.0,0.0001748,2]
[391938275,1761012642424,-9905.5980765,0.00017481,2]
[391938277,1761012642438,-14073.45719449,0.000175,2]
[391938280,1761012642451,-500.0,0.00017535,2]
[391938282,1761012642465,-10272.10520533,0.00017536,2]
[391938284,1761012642478,-151.0,0.00017588,2]
[391938287,1761012642491,-10652.17309792,0.00017591,2]
[391938289,1761012642505,-307.61,0.00017629,2]
[391938292,1761012642519,-284.59322312,0.00017636,2]
[391938295,1761012642534,-11046.30350255,0.00017646,2]
[391938297,1761012642552,-541.42107977,0.00017657,2]
[391938299,1761012642564,-11455.01673214,0.00017701,2]
[391938301,1761012642573,-1000.0,0.00017749,2]
[391938303,1761012642583,-11878.85235123,0.00017756,2]
[391938305,1761012642592,-250.0,0.00017797,2]
[391938307,1761012642602,-12318.36988823,0.00017811,2]
[391938309,1761012642611,-426.0,0.0001785,2]
[391938328,1761012642804,-2936.60466,0.0001785,2]
[391938329,1761012642832,-5067.02280393,0.00017866,2]
[391938330,1761012642842,-583.24,0.00017872,2]
[391938331,1761012642852,-475.93135235,0.00017972,2]
[391938332,1761012642861,-25042.29,0.00017979,2]
[391938333,1761012642870,-152.089999,0.00017979,2]
[391938334,1761012642880,-160.204253,0.00017979,2]
[391938335,1761012642889,-1082.461128,0.00017979,2]
[391938336,1761012642899,-1082.461128,0.00017979,2]
[391938337,1761012642908,-1082.461128,0.00017979,2]
[391938338,1761012642918,-1082.461128,0.00017979,2]
[391938339,1761012642927,-158.16275435,0.00017992,2]
[391938340,1761012642936,-500.0,0.00017992,2]
[391938341,1761012642946,-150.0,0.00017992,2]
[391938342,1761012642955,-500.0,0.00017992,2]
[391938343,1761012642965,-150.0,0.00017992,2]
[391938344,1761012642975,-157.5567364,0.00017992,2]
[391938345,1761012642984,-500.0,0.00017992,2]
[391938346,1761012642994,-500.0,0.00017992,2]
[391938347,1761012643003,-153.08691393,0.00017992,2]
[391938348,1761012643012,-500.0,0.00017992,2]
[391938349,1761012643022,-150.0,0.00017992,2]
[391938350,1761012643031,-500.0,0.00017992,2]
[391938351,1761012643044,-508.64000004,0.00018,2]
[391938352,1761012643054,-784.17662986,0.00018021,2]
[391938353,1761012643063,-2244.0,0.00018024,2]
[391938354,1761012643073,-500.0,0.00018047,2]
[391938356,1761012643083,-500.0,0.00018047,2]
[391938358,1761012643092,-500.0,0.00018047,2]
[391938360,1761012643101,-500.0,0.00018047,2]
[391938362,1761012643111,-150.0,0.00018047,2]
[391938364,1761012643120,-500.0,0.00018047,2]
[391938366,1761012643130,-169.54,0.00018082,2]
[391938368,1761012643139,-215.10231735,0.00018102,2]
[391938370,1761012643149,-388.43715145,0.00018102,2]
[391938372,1761012643158,-170.22039718,0.00018102,2]
[391938375,1761012643168,-611.38765258,0.00018102,2]
[391938377,1761012643177,-200.0,0.00018102,2]
[391938380,1761012643187,-151.91048065,0.00018102,2]
[391938383,1761012643196,-500.41226317,0.00018233,2]
[391938386,1761012643205,-502.57654482,0.00018233,2]
[391938388,1761012643215,-643.6951608,0.00018233,2]
[391938391,1761012643225,-156.44781613,0.00018247,2]
[391938393,1761012643235,-213.2,0.00018333,2]
[391938395,1761012643244,-422.42829521,0.00018336,2]
[391938396,1761012643254,-200.0,0.00018336,2]
[391938398,1761012643264,-307.61,0.00018511,2]
[391938399,1761012643273,-1585.06,0.00018533,2]
[391938401,1761012643283,-1529.01,0.00018533,2]
[391938403,1761012643292,-8030.09,0.00018533,2]
[391938407,1761012643302,-11827.8458047,0.00018533,2]
[391938413,1761012643346,-895.5320715,0.00018533,2]
[391938415,1761012643392,-2478.58659664,0.00018533,2]
[391938416,1761012643575,-409.51204815,0.00018533,2]
[391938417,1761012643587,-1441.13347901,0.00018533,2]
[391938418,1761012643597,-6555.96,0.00018533,2]
[391938419,1761012643606,-299.99,0.00018533,4]
[391938420,1761012643616,-1214.95104496,0.00018533,2]
[391938421,1761012643631,-374.88,0.00018533,2]
[391938422,1761012643642,-327.21,0.00018533,2]
[391938423,1761012643653,-1528.03895504,0.00018533,2]
[391938424,1761012643664,-9999.99,0.00018533,2]
[391938425,1761012643673,-500.0,0.00018556,2]
[391938426,1761012643682,-736.0,0.00018564,2]
[391938427,1761012643692,-592.15,0.00018723,2]
[391938428,1761012643701,-287.61899177,0.00018795,2]
[391938429,1761012643710,-334.5472959,0.00018795,2]
[391938430,1761012643720,-150.58,0.000188,2]
[391938431,1761012643729,-150.58,0.000188,2]
[391938432,1761012643739,-2936.60466,0.0001885,2]
[391938433,1761012643752,-2575.67553294,0.00019,2]
[391938434,1761012643761,-546.67641,0.00019,2]
[391938435,1761012643770,-155.781,0.00019006,2]
[391938436,1761012643779,-167.0,0.0001901,2]
[391938437,1761012643789,-202.8170051,0.00019178,2]
[391938438,1761012643799,-162.41386365,0.00019184,2]
[391938439,1761012643808,-153.77657523,0.00019184,2]
[391938440,1761012643817,-150.0,0.00019184,2]
[391938441,1761012643828,-151.0,0.00019227,7]
[391938442,1761012643837,-291.60783532,0.00019227,7]
[391938443,1761012643846,-153.960587,0.00019227,7]
[391938444,1761012643855,-152.491087,0.00019282,7]
[391938445,1761012643866,-454.82829634,0.00019362,2]
[391938446,1761012643875,-500.0,0.00019373,2]
[391938447,1761012643885,-503.15038253,0.00019373,2]
[391938448,1761012643894,-501.16874507,0.00019373,2]
[391938449,1761012643904,-500.0,0.00019373,2]
[391938450,1761012643913,-307.61,0.00019392,2]
[391938451,1761012643922,-169.54,0.00019438,2]
[391938452,1761012643931,-157.34179312,0.00019521,2]
[391938453,1761012643941,-387.54650365,0.00019523,2]
[391938454,1761012643950,-1000.0,0.00019524,2]
[391938455,1761012643960,-502.69763553,0.00019571,2]
[391938456,1761012643970,-2000.0,0.000197,2]
[391938457,1761012643979,-1757.0,0.000197,2]
[391938458,1761012643988,-160.0,0.000198,2]
[391938459,1761012643997,-160.0,0.000198,2]
[391938460,1761012644007,-2936.60467,0.0001985,2]
[391938461,1761012644017,-583.24,0.00019858,2]
[391938462,1761012644026,-3141.83,0.00019881,2]
[391938463,1761012644035,-504.69188968,0.00019921,2]
[391938464,1761012644046,-1000.0,0.00019965,2]
[391938466,1761012644056,-153.0,0.0002005,2]
[391938468,1761012644066,-153.0,0.0002005,2]
[391938470,1761012644075,-153.0,0.0002005,2]
[391938471,1761012644085,-153.0,0.0002005,2]
[391938472,1761012644095,-153.0,0.0002005,2]
[391938473,1761012644104,-153.0,0.0002005,2]
[391938474,1761012644113,-153.0,0.0002005,2]
[391938475,1761012644123,-298.26089446,0.00020164,2]
[391938476,1761012644132,-346.92554585,0.00020164,2]
[391938477,1761012644142,-316.27,0.00020187,2]
[391938478,1761012644151,-150.0,0.00020249,4]
[391938479,1761012644160,-307.61,0.00020274,2]
[391938480,1761012644170,-307.0,0.00020402,2]
[391938481,1761012644179,-541.42107977,0.00020414,2]
[391938482,1761012644188,-153.0,0.00020435,2]
[391938483,1761012644198,-153.0,0.00020435,2]
[391938484,1761012644207,-151.0,0.00020548,7]
[391938485,1761012644216,-151.0,0.00020548,7]
[391938486,1761012644226,-158.691472,0.00020548,7]
[391938487,1761012644235,-169.54,0.00020795,2]
[391938488,1761012644245,-500.0,0.00020831,2]
[391938489,1761012644254,-500.0,0.00020832,2]
[391938490,1761012644264,-200.0,0.00020832,2]
[391938491,1761012644273,-9312.38178174,0.00020852,2]
[391938492,1761012644283,-418.8844,0.000209,2]
[391938493,1761012644292,-267.45,0.00020983,2]
[391938494,1761012644302,-500.0,0.00020999,2]
[391938495,1761012644311,-500.0,0.00020999,2]
[391938496,1761012644320,-828.93433233,0.00021,2]
[391938497,1761012644330,-1179.05640882,0.00021,2]
[391938498,1761012644339,-194.6199012,0.00021,2]
[391938499,1761012644348,-20000.0,0.00021,2]
[391938500,1761012644358,-307.61,0.00021155,2]
[391938501,1761012644367,-1000.0,0.00021298,2]
[391938502,1761012644376,-257.0,0.00021309,2]
[391938503,1761012644386,-801.915,0.00021309,2]
[391938504,1761012644395,-3411.0,0.00021309,2]
[391938505,1761012644404,-2055.298,0.00021309,2]
[391938506,1761012644413,-1590.0,0.00021309,2]
[391938507,1761012644423,-605.0,0.00021309,2]
[391938508,1761012644432,-819.0,0.00021309,2]
[391938509,1761012644442,-1268.0,0.00021309,2]
[391938510,1761012644451,-558.486,0.00021309,2]
[391938511,1761012644461,-2591.0,0.00021309,2]
[391938512,1761012644471,-6517.0,0.00021309,2]
[391938513,1761012644481,-2091.179,0.00021309,2]
[391938514,1761012644490,-151.0,0.00021309,7]
[391938515,1761012644499,-151.0,0.00021309,7]
[391938516,1761012644509,-151.0,0.00021309,7]
[391938517,1761012644518,-1082.461128,0.00021309,7]
[391938518,1761012644527,-1082.461128,0.00021309,7]
[391938519,1761012644536,-1082.461128,0.00021309,7]
[391938520,1761012644546,-1082.461128,0.00021309,7]
[391938521,1761012644556,-166.80831811,0.00021315,4]
[391938522,1761012644566,-167.23582267,0.00021334,2]
[391938523,1761012644575,-164.22,0.00021457,2]
[391938524,1761012644588,-19233.12781112,0.000215,2]
[391938525,1761012644597,-219.42395649,0.000215,2]
[391938526,1761012644607,-309.29654756,0.00021533,2]
[391938527,1761012644616,-359.76179104,0.00021533,2]
[391938528,1761012644626,-267.0,0.00021667,2]
[391938529,1761012644635,-2468.07,0.00021688,2]
[391938530,1761012644645,-422.42829521,0.00021772,2]
[391938531,1761012644655,-220.35121389,0.00021825,2]
[391938532,1761012644664,-583.24,0.00021844,2]
[391938533,1761012644780,-869.86,0.00021917,2]
[391938534,1761012644793,-869.86,0.00021917,2]
[391938535,1761012644802,-869.86,0.00021917,2]
[391938536,1761012644811,-869.86,0.00021917,2]
[391938537,1761012644822,-869.86,0.00021917,2]
[391938538,1761012644831,-869.86,0.00021917,2]
[391938539,1761012644840,-5000.0,0.00021918,2]
[391938540,1761012644849,-267.0,0.00022025,2]
[391938541,1761012644859,-307.61,0.00022037,2]
[391938542,1761012644868,-267.0,0.00022081,2]
[391938543,1761012644878,-169.72,0.00022092,2]
[391938544,1761012644888,-164.22,0.00022127,2]
[391938545,1761012644897,-971.0,0.000222,2]
[391938546,1761012644906,-301.0,0.000222,2]
[391938547,1761012644916,-443.0,0.000222,2]
[391938548,1761012644929,-267.0,0.00022397,2]
[391938549,1761012644938,-161.953396,0.00022557,2]
[391938550,1761012644947,-753.44222008,0.00022562,2]
[391938551,1761012644960,-2865.99777992,0.00022562,2]
[391938552,1761012644970,-312.89,0.00022562,2]
[391938553,1761012644980,-150.58,0.00022576,2]
[391938554,1761012644989,-150.58,0.00022576,2]
[391938555,1761012644999,-151.0,0.00022586,7]
[391938556,1761012645008,-151.0,0.00022586,7]
[391938557,1761012645018,-151.0,0.00022586,7]
[391938558,1761012645027,-500.0,0.00022586,2]
[391938559,1761012645036,-869.86,0.00022586,2]
[391938560,1761012645046,-1082.461128,0.00022586,7]
[391938561,1761012645055,-1082.461128,0.00022586,7]
[391938562,1761012645065,-1082.461128,0.00022586,7]
[391938563,1761012645073,-1082.461128,0.00022586,7]
[391938564,1761012645090,-300.0,0.00022586,3]
[391938565,1761012645109,-300.0,0.00022586,3]
[391938566,1761012645119,-300.0,0.00022586,3]
[391938567,1761012645128,-317.335403,0.00022586,3]
[391938568,1761012645137,-148.43342823,0.00022586,2]
[391938569,1761012645149,-351.56657177,0.00022586,2]
[391938570,1761012645160,-213744.39811416,0.00022586,2]
[391938571,1761012645170,-164.22,0.00022798,2]
[391938572,1761012645180,-320.74051982,0.00022902,2]
[391938573,1761012645190,-373.07297731,0.00022902,2]
[391938574,1761012645199,-307.61,0.00022918,2]
[391938575,1761012645209,-267.0,0.00023047,2]
[391938576,1761012645218,-168.0,0.00023149,2]
[391938577,1761012645229,-267.0,0.00023161,2]
[391938578,1761012645239,-541.42107977,0.00023171,2]
[391938579,1761012645249,-267.0,0.00023242,2]
[391938580,1761012645258,-153.885561,0.00023288,7]
[391938581,1761012645267,-151.0,0.00023288,7]
[391938582,1761012645277,-151.0,0.00023288,7]
[391938583,1761012645286,-153.056427,0.00023288,7]
[391938584,1761012645295,-151.0,0.00023288,7]
[391938585,1761012645304,-151.0,0.00023288,7]
[391938586,1761012645313,-155.273486,0.00023288,7]
[391938587,1761012645325,-151.0,0.00023288,7]
[391938588,1761012645335,-151.0,0.00023288,7]
[391938589,1761012645345,-153.378857,0.00023288,7]
[391938590,1761012645355,-151.0,0.00023288,7]
[391938591,1761012645364,-151.746411,0.00023288,7]
[391938592,1761012645373,-278.587018,0.00023288,7]
[391938593,1761012645382,-172.224178,0.00023288,7]
[391938594,1761012645391,-151.0,0.00023288,7]
[391938595,1761012645400,-153.212091,0.00023288,7]
[391938596,1761012645409,-151.0,0.00023288,7]
[391938597,1761012645418,-151.0,0.00023288,7]
[391938598,1761012645427,-153.30814,0.00023288,7]
[391938599,1761012645437,-153.1621,0.00023288,7]
[391938600,1761012645448,-151.0,0.00023288,7]
[391938601,1761012645458,-151.0,0.00023288,7]
[391938602,1761012645467,-156.503998,0.00023288,7]
[391938603,1761012645476,-155.332625,0.00023288,7]
[391938604,1761012645485,-153.847773,0.00023288,7]
[391938605,1761012645494,-164.671164,0.00023288,7]
[391938606,1761012645504,-151.0,0.00023288,7]
[391938607,1761012645512,-151.0,0.00023288,7]
[391938608,1761012645521,-275.981785,0.00023288,7]
[391938609,1761012645530,-151.0,0.00023288,7]
[391938610,1761012645539,-151.0,0.00023288,7]
[391938611,1761012645549,-154.971248,0.00023288,7]
[391938612,1761012645558,-151.0,0.00023288,7]
[391938613,1761012645567,-151.0,0.00023288,7]
[391938614,1761012645576,-161.035122,0.00023288,7]
[391938615,1761012645584,-152.503334,0.00023288,7]
[391938616,1761012645594,-151.0,0.00023288,7]
[391938617,1761012645603,-276.562486,0.00023288,7]
[391938618,1761012645612,-151.0,0.00023288,7]
[391938619,1761012645621,-151.0,0.00023288,7]
[391938620,1761012645630,-151.0,0.00023288,7]
[391938621,1761012645639,-151.0,0.00023288,7]
[391938622,1761012645648,-161.144203,0.00023288,7]
[391938623,1761012645658,-153.087684,0.00023288,7]
[391938624,1761012645667,-151.0,0.00023288,7]
[391938625,1761012645677,-151.0,0.00023288,7]
[391938626,1761012645686,-239.677425,0.00023288,7]
[391938627,1761012645697,-151.0,0.00023288,7]
[391938628,1761012645707,-151.0,0.00023288,7]
[391938629,1761012645716,-151.0,0.00023288,7]
[391938630,1761012645725,-151.0,0.00023288,7]
[391938631,1761012645734,-151.0,0.00023288,7]
[391938632,1761012645745,-151.0,0.00023288,7]
[391938633,1761012645756,-151.0,0.00023288,7]
[391938634,1761012645765,-152.977793,0.00023288,7]
[391938635,1761012645774,-151.0,0.00023288,7]
[391938636,1761012645783,-167.920529,0.00023288,7]
[391938637,1761012645792,-151.0,0.00023288,7]
[391938638,1761012645801,-151.0,0.00023288,7]
[391938639,1761012645813,-155.736826,0.00023288,7]
[391938640,1761012645825,-325.808219,0.00023288,7]
[391938641,1761012645834,-325.808219,0.00023288,7]
[391938642,1761012645843,-325.808219,0.00023288,7]
[391938643,1761012645851,-325.808219,0.00023288,7]
[391938644,1761012645860,-151.0,0.00023288,7]
[391938645,1761012645870,-325.808219,0.00023288,7]
[391938646,1761012645879,-151.0,0.00023288,7]
[391938647,1761012645888,-325.808219,0.00023288,7]
[391938648,1761012645897,-258.489583,0.00023288,7]
[391938649,1761012645906,-325.808219,0.00023288,7]
[391938650,1761012645915,-325.808219,0.00023288,7]
[391938651,1761012645924,-325.808219,0.00023288,7]
[391938652,1761012645933,-325.808219,0.00023288,7]
[391938653,1761012645942,-325.808219,0.00023288,7]
[391938654,1761012645952,-325.808219,0.00023288,7]
[391938655,1761012645961,-151.0,0.00023288,7]
[391938656,1761012645971,-151.0,0.00023288,7]
[391938657,1761012645980,-151.0,0.00023288,7]
[391938658,1761012645989,-151.0,0.00023288,7]
[391938659,1761012645999,-151.0,0.00023288,7]
[391938660,1761012646008,-151.0,0.00023288,7]
[391938661,1761012646017,-151.0,0.00023288,7]
[391938662,1761012646026,-153.58898,0.00023288,7]
[391938663,1761012646035,-151.0,0.00023288,7]
[391938664,1761012646044,-151.0,0.00023288,7]
[391938665,1761012646054,-162.557956,0.00023288,7]
[391938666,1761012646063,-151.0,0.00023288,7]
[391938667,1761012646072,-151.0,0.00023288,7]
[391938668,1761012646081,-199.131228,0.00023288,7]
[391938669,1761012646094,-151.0,0.00023288,7]
[391938670,1761012646103,-167.391557,0.00023288,7]
[391938671,1761012646112,-151.0,0.00023288,7]
[391938673,1761012646121,-151.0,0.00023288,7]
[391938674,1761012646130,-151.0,0.00023288,7]
[391938676,1761012646139,-151.0,0.00023288,7]
[391938677,1761012646148,-151.0,0.00023288,7]
[391938678,1761012646157,-172.185623,0.00023288,7]
[391938679,1761012646166,-306.633218,0.00023288,7]
[391938680,1761012646174,-151.0,0.00023288,7]
[391938681,1761012646183,-306.633218,0.00023288,7]
[391938682,1761012646192,-293.920362,0.00023288,7]
[391938683,1761012646202,-306.633218,0.00023288,7]
[391938684,1761012646211,-306.633218,0.00023288,7]
[391938685,1761012646220,-306.633218,0.00023288,7]
[391938686,1761012646229,-306.633218,0.00023288,7]
[391938687,1761012646240,-151.0,0.00023288,7]
[391938688,1761012646249,-151.0,0.00023288,7]
[391938689,1761012646258,-151.0,0.00023288,7]
[391938690,1761012646267,-306.633218,0.00023288,7]
[391938691,1761012646276,-306.633218,0.00023288,7]
[391938692,1761012646285,-306.633218,0.00023288,7]
[391938693,1761012646294,-151.0,0.00023288,7]
[391938694,1761012646302,-151.0,0.00023288,7]
[391938695,1761012646312,-306.633218,0.00023288,7]
[391938696,1761012646321,-151.0,0.00023288,7]
[391938697,1761012646330,-306.633218,0.00023288,7]
[391938698,1761012646339,-306.633218,0.00023288,7]
[391938700,1761012646348,-151.0,0.00023288,7]
[391938702,1761012646358,-151.0,0.00023288,7]
[391938703,1761012646366,-255.216492,0.00023288,7]
[391938704,1761012646375,-151.0,0.00023288,7]
[391938705,1761012646384,-151.0,0.00023288,7]
[391938706,1761012646393,-151.0,0.00023288,7]
[391938707,1761012646402,-151.0,0.00023288,7]
[391938708,1761012646411,-151.0,0.00023288,7]
[391938709,1761012646420,-151.0,0.00023288,7]
[391938710,1761012646429,-151.0,0.00023288,7]
[391938711,1761012646438,-151.0,0.00023288,7]
[391938712,1761012646448,-151.0,0.00023288,7]
[391938713,1761012646457,-151.0,0.00023288,7]
[391938714,1761012646466,-151.0,0.00023288,7]
[391938715,1761012646475,-151.0,0.00023288,7]
[391938716,1761012646485,-151.0,0.00023288,7]
[391938717,1761012646495,-151.0,0.00023288,7]
[391938718,1761012646505,-151.0,0.00023288,7]
[391938719,1761012646516,-151.0,0.00023288,7]
[391938720,1761012646526,-151.0,0.00023288,7]
[391938721,1761012646536,-151.0,0.00023288,7]
[391938722,1761012646545,-151.0,0.00023288,7]
[391938723,1761012646554,-179.790893,0.00023288,7]
[391938724,1761012646563,-151.0,0.00023288,7]
[391938725,1761012646572,-151.0,0.00023288,7]
[391938726,1761012646589,-151.0,0.00023288,7]
[391938727,1761012646602,-151.0,0.00023288,7]
[391938728,1761012646611,-151.0,0.00023288,7]
[391938729,1761012646620,-151.0,0.00023288,7]
[391938730,1761012646629,-151.0,0.00023288,7]
[391938731,1761012646638,-151.0,0.00023288,7]
[391938732,1761012646649,-151.0,0.00023288,7]
[391938733,1761012646658,-151.0,0.00023288,7]
[391938734,1761012646667,-151.0,0.00023288,7]
[391938735,1761012646676,-151.0,0.00023288,7]
[391938736,1761012646685,-151.0,0.00023288,7]
[391938737,1761012646694,-151.0,0.00023288,7]
[391938738,1761012646704,-151.0,0.00023288,7]
[391938739,1761012646713,-151.0,0.00023288,7]
[391938740,1761012646724,-151.0,0.00023288,7]
[391938741,1761012646733,-151.0,0.00023288,7]
[391938742,1761012646742,-151.0,0.00023288,7]
[391938743,1761012646755,-151.0,0.00023288,7]
[391938744,1761012646765,-151.0,0.00023288,7]
[391938745,1761012646774,-151.0,0.00023288,7]
[391938746,1761012646783,-283.124685,0.00023288,7]
[391938747,1761012646793,-151.0,0.00023288,7]
[391938748,1761012646802,-151.0,0.00023288,7]
[391938749,1761012646811,-151.0,0.00023288,7]
[391938750,1761012646820,-203.059355,0.00023288,7]
[391938752,1761012646830,-152.319189,0.00023288,7]
[391938754,1761012646839,-151.0,0.00023288,7]
[391938755,1761012646848,-151.0,0.00023288,7]
[391938756,1761012646857,-151.0,0.00023288,7]
[391938757,1761012646867,-151.0,0.00023288,7]
[391938758,1761012646876,-151.0,0.00023288,7]
[391938759,1761012646885,-151.0,0.00023288,7]
[391938760,1761012646894,-151.0,0.00023288,7]
[391938761,1761012646904,-151.0,0.00023288,7]
[391938762,1761012646914,-151.0,0.00023288,7]
[391938763,1761012646923,-151.0,0.00023288,7]
[391938764,1761012646933,-157.404327,0.00023288,7]
[391938766,1761012646942,-151.0,0.00023288,7]
[391938768,1761012646952,-151.0,0.00023288,7]
[391938769,1761012646961,-192.258606,0.00023288,7]
[391938772,1761012647078,-151.0,0.00023288,7]
[391938773,1761012647089,-153.782463,0.00023288,7]
[391938774,1761012647098,-151.0,0.00023288,7]
[391938775,1761012647108,-151.0,0.00023288,7]
[391938776,1761012647117,-151.0,0.00023288,7]
[391938777,1761012647127,-151.0,0.00023288,7]
[391938778,1761012647136,-151.0,0.00023288,7]
[391938779,1761012647145,-166.44690332,0.00023288,7]
[391938780,1761012647154,-151.0,0.00023288,7]
[391938781,1761012647163,-151.0,0.00023288,7]
[391938782,1761012647172,-205.690028,0.00023288,7]